Cogmind - Beta 12 @@@ ROGUE MODE // 2023.06.27 @ 21:23:03 Player: Gwen Result: Core destroyed Performance ------------- Evolutions (2) 1000 Regions Visited (3) 600 Robots Destroyed (25) 125 Value Destroyed (590) 590 Prototype IDs (4) 80 Alien Tech Used (0) 0 Bonus (0) 0 TOTAL SCORE: 2395 Bonus ------- None Cogmind --------- Core Integrity 0/550 Matter 248/300 Energy 88/100 System Corruption 0% Temperature Critical (506) Movement Core (50) Location -8/Materials Parts ------- > --- POWER (2) -------- (None) > --- PROPULSION (4) --- (None) > --- UTILITY (2) ------ Cryofiber Web > --- WEAPON (3) ------- (None) > --- INVENTORY (5) ---- Flight Unit Huge Storage Unit Compact Matter Pod (0) Peak State ------------ > --- POWER ------------ Deuterium Engine Deuterium Engine > --- PROPULSION ------- Improved Hover Unit Improved Hover Unit Improved Hover Unit Improved Hover Unit > --- UTILITY ---------- Cryofiber Web Sensor Array > --- WEAPON ----------- Pulse Rifle Pulse Rifle Light Assault Rifle > --- INVENTORY -------- Ion Engine Huge Storage Unit Beam Rifle [Rating: 25] Favorites ----------- Power Ion Engine Engine Ion Engine Propulsion Improved Flight Unit Treads Light Treads Hover Unit Improved Hover Unit Flight Unit Improved Flight Unit Utility Improved Terrain Scanner Device Improved Terrain Scanner Storage Small Storage Unit Weapon Light Assault Rifle Energy Gun EM Pulse Gun Energy Cannon Light EM Pulse Cannon Ballistic Gun Light Assault Rifle Special Weapon Mining Laser Build | -11 -10 -9 -8 ------- Run | Jun Mat Mat Mat Slots Evolved 4 | . . 2 2 Power 1 | . . . 1 Propulsion 2 | . . 2 . Utility . | . . . . Weapon 1 | . . . 1 Parts Attached 32 | 9 7 12 4 Power 7 | 1 1 3 2 Engine 7 | 1 1 3 2 Core . | . . . . Reactor . | . . . . Propulsion 9 | 2 3 4 . Treads 2 | 2 . . . Leg . | . . . . Wheel . | . . . . Hover 4 | . . 4 . Flight 3 | . 3 . . Utility 5 | 2 . 3 . Device 4 | 1 . 3 . Storage 1 | 1 . . . Processor . | . . . . Hackware . | . . . . Protection . | . . . . Artifact . | . . . . Weapon 11 | 4 3 2 2 Energy Gun 4 | 1 . 1 2 Energy Cannon 2 | . 1 1 . Ballistic Gun 4 | 2 2 . . Ballistic Cannon . | . . . . Launcher . | . . . . Special Weapon 1 | 1 . . . Impact Weapon . | . . . . Slashing Weapon . | . . . . Piercing Weapon . | . . . . Special Melee Weapon . | . . . . Unidentified Prototypes 2 | . 1 1 . Parts Lost 13 | . . 1 12 Power 3 | . . . 3 Propulsion 4 | . . . 4 Utility 1 | . . . 1 Weapon 5 | . . 1 4 Highest Loss Streak 12 | . . 1 12 To Critical Strikes . | . . . . Average Slot Usage (%) 73 | . 75 78 62 Engine 12 | . 14 11 10 Hover 7 | . . 8 18 Flight 16 | . 24 17 . Device 13 | . 3 20 17 Storage 1 | . 3 . . Energy Gun 5 | . . 6 11 Energy Cannon 5 | . 11 4 . Ballistic Gun 10 | . 14 11 3 Naked Turns . | . . . . Heaviest Build 27 | 14 15 16 27 Greatest Support 40 | 40 40 28 28 Greatest Overweight (x) 2 | . 1 2 2 Average Overweight (x) . | . . . . Largest Inventory Capacity 8 | 8 8 5 5 Average Capacity 6 | 7 5 5 5 Most Carried 6 | 4 6 5 4 Average Carried 2 | . 3 4 3 Final Capacity 8 | 8 5 5 5 Final Carried 5 | 1 5 5 3 Class Distribution -------------------- 88% | Mutant 11% | Skirmisher Dominant Class ---------------- Mutant | -10/Materials Mutant | -9/Materials Mutant | -8/Materials Resources | -11 -10 -9 -8 ----------- Run | Jun Mat Mat Mat Matter Collected 546 | 301 94 141 10 Remotely . | . . . . Salvage Created 885 | 231 251 297 106 Parts 63 | 21 19 19 4 Haulers Intercepted . | . . . . Recyclers Shooed 2 | 1 . 1 . Parts Field Recycled . | . . . . Retrieved Matter . | . . . . Parts Self-Destructed . | . . . . Prevented . | . . . . Kills | -11 -10 -9 -8 ------- Run | Jun Mat Mat Mat Combat Hostiles Destroyed 12 | . 5 4 3 Guns 8 | . 1 4 3 Cannons 4 | . 4 . . Classes Destroyed 9 | 3 2 1 3 Worker 2 | 2 . . . Tunneler 4 | 4 . . . Recycler 2 | 1 . 1 . Operator 1 | . . . 1 Watcher 4 | . 2 2 . Swarmer 1 | . . . 1 Grunt 8 | . 5 2 1 Duelist 1 | . . . 1 Sentry 2 | . . 2 . Best Kill Streak 4 | 3 4 3 3 Combat Bots Only 4 | . 4 2 3 Max Kills in Single Turn 2 | 2 1 1 1 Gunslinging . | . . . . Exploded . | . . . . Melee . | . . . . Uniques/NPCs Destroyed . | . . . . Combat | -11 -10 -9 -8 -------- Run | Jun Mat Mat Mat Damage Taken 1401 | . 108 67 1226 Core 638 | . 22 24 592 Absorbed by Shields . | . . . . Core Remaining (%) 95 | 100 91 94 . Volleys Fired 99 | 39 24 12 24 Largest 3 | 2 2 2 3 Hottest 146 | 140 76 83 146 Shots Fired 178 | 63 48 24 43 Gun 134 | 50 24 17 43 Cannon 31 | . 24 7 . Launcher . | . . . . Special 13 | 13 . . . Kinetic 57 | 11 24 12 10 Thermal 51 | 13 . 5 33 Explosive . | . . . . Electromagnetic 70 | 39 24 7 . Robot Hit Streak 11 | 8 11 8 4 Robot Miss Streak 6 | 2 2 4 6 Penetration Max . | . . . . Secondary Targets 1 | . . . 1 Max Gunslinging Chain 1 | . . . 1 Shots Hit Robots 73 | 13 27 14 19 Core Hits 38 | 9 12 10 7 Critical Kills . | . . . . Critical Parts Destroyed . | . . . . Critical Strikes . | . . . . Melee Attacks . | . . . . Impact . | . . . . Slashing . | . . . . Piercing . | . . . . Sneak Attacks . | . . . . Combat Hostiles . | . . . . Follow-up Attacks . | . . . . Damage Inflicted 1208 | 183 470 239 316 Guns 718 | 183 115 104 316 Cannons 490 | . 355 135 . Explosions . | . . . . Melee . | . . . . Ramming . | . . . . Kinetic 205 | 38 115 37 15 Thermal 368 | . . 67 301 Explosive . | . . . . Electromagnetic 635 | 145 355 135 . Impact . | . . . . Slashing . | . . . . Piercing . | . . . . Highest Corruption 1 | . . 1 . Average Corruption 1 | . . 1 . Corruption Purged . | . . . . Corruption Blocked . | . . . . Effects 2 | . . 2 . Matter Fused 1 | . . 1 . Heat Flow Errors 1 | . . 1 . Overload Shots . | . . . . Overflow Damage 18 | . 8 10 . Projectiles 18 | . 8 10 . Explosions . | . . . . Melee . | . . . . Knockbacks . | . . . . Impact . | . . . . Kinetic . | . . . . Secondary . | . . . . Self-Inflicted Damage . | . . . . Shots . | . . . . Rammed . | . . . . Targets Rammed . | . . . . Kicked . | . . . . Crushed . | . . . . Highest Temperature 976 | 388 190 170 976 Average Temperature 221 | 137 85 59 616 Received Heat Transfer 375 | . 60 18 297 Effects 25 | 1 . . 24 Shutdowns 3 | 1 . . 2 Energy Bleed 5 | . . . 5 Interference 2 | . . . 2 Matter Decay 2 | . . . 2 Short Circuit 1 | . . . 1 Damage (minor) 2 | . . . 2 Damage (major) 6 | . . . 6 Damage (core) 4 | . . . 4 Siege Activations . | . . . . Robots Corrupted . | . . . . Combat Hostiles . | . . . . Parts Fried 1 | . 1 . . Impact Corruptions . | . . . . Robots Melted . | . . . . Combat Hostiles . | . . . . Parts Melted . | . . . . Heat Transferred 814 | . . 148 666 Parts Sabotaged . | . . . . Parts Stolen . | . . . . Parts Stripped . | . . . . Power Chain Reactions . | . . . . Missiles Intercepted . | . . . . Alert | -11 -10 -9 -8 ------- Run | Jun Mat Mat Mat Peak Influence 284 | 35 226 284 189 Initial 119 | . 22 94 119 Average 95 | 19 91 195 130 Maximum Alert Level 1 | . 1 1 . Low Security (%) 82 | 100 84 44 100 Level 1 17 | . 15 55 . Level 2 . | . . . . Level 3 . | . . . . Level 4 . | . . . . Level 5 . | . . . . High Security . | . . . . Max Security . | . . . . Squads Dispatched 4 | . 1 2 1 Investigation 3 | . 1 2 . Extermination . | . . . . Reinforcement 1 | . . . 1 Assault . | . . . . Garrison . | . . . . Intercept . | . . . . Searches Triggered . | . . . . Construction Impeded . | . . . . Haulers Reinforced . | . . . . Active Scanning Responses . | . . . . Cargo Convoy Interrupts . | . . . . Stealth | -11 -10 -9 -8 --------- Run | Jun Mat Mat Mat Distress Signals 2 | . 1 . 1 Communications Jammed . | . . . . Distress Signals . | . . . . Times Spotted 23 | . 12 4 7 Peak Tracking Total 6 | . 4 1 6 Tactical Retreats 2 | . 1 . 1 Traps | -11 -10 -9 -8 ------- Run | Jun Mat Mat Mat Traps Triggered . | . . . . Indirectly . | . . . . Trap Hack Attempts . | . . . . Triggered . | . . . . Disarmed . | . . . . Reprogrammed . | . . . . Reused . | . . . . Traps Extracted . | . . . . Installed . | . . . . Triggered . | . . . . Machines | -11 -10 -9 -8 ---------- Run | Jun Mat Mat Mat Machines Disabled 1 | . 1 . . Max in Single Turn 1 | . 1 . . Machines Repaired . | . . . . Machines Sabotaged . | . . . . Overloaded Fab Kills . | . . . . Hacking | -11 -10 -9 -8 --------- Run | Jun Mat Mat Mat Machines Accessed 5 | . . 4 1 Terminals 4 | . . 3 1 Fabricators . | . . . . Repair Stations . | . . . . Recycling Units 1 | . . 1 . Scanalyzers . | . . . . Garrison Access . | . . . . Total Hacks 16 | . . 15 1 Successful 7 | . . 6 1 Failed 9 | . . 9 . Catastrophic . | . . . . Database Lockouts . | . . . . Manual . | . . . . Terminals 11 | . . 10 1 Fabricators . | . . . . Repair Stations . | . . . . Recycling Units 5 | . . 5 . Scanalyzers . | . . . . Garrison Access . | . . . . Terminal Hacks 6 | . . 5 1 Record 1 | . . . 1 Prototype ID Bank 1 | . . 1 . Emergency Access Points 1 | . . 1 . Recall Investigation 1 | . . 1 . Hauler Manifests 1 | . . 1 . Zone Layout 1 | . . 1 . Fabricator Hacks . | . . . . Repair Station Hacks . | . . . . Recycling Unit Hacks 1 | . . 1 . Retrieve Components 1 | . . 1 . Scanalyzer . | . . . . Garrison Access Hacks . | . . . . Unauthorized Hacks . | . . . . Terminals . | . . . . Fabricators . | . . . . Repair Stations . | . . . . Recycling Units . | . . . . Scanalyzers . | . . . . Garrison Access . | . . . . Data Cores Recovered 1 | . . . 1 Used 1 | . . . 1 Hacking Detections 4 | . . 4 . Full Trace Events 3 | . . 3 . Feedback Events 1 | . . 1 . Corruption 1 | . . 1 . Feedback Blocked . | . . . . Robot Schematics Acquired . | . . . . Robots Built . | . . . . Authchips . | . . . . Time . | . . . . Total Robot Build Rating . | . . . . Part Schematics Acquired . | . . . . Parts Built . | . . . . Authchips . | . . . . Time . | . . . . Total Part Build Rating . | . . . . Parts Repaired . | . . . . Time . | . . . . Parts Recycled . | . . . . Recycled Matter . | . . . . Retrieved Matter . | . . . . Retrieved Components 1 | . . 1 . Parts Scanalyzed . | . . . . Part Schematics Acquired . | . . . . Parts Damaged . | . . . . Bothacking | -11 -10 -9 -8 ------------ Run | Jun Mat Mat Mat Used RIF Installer . | . . . . Robots Hacked . | . . . . Non-combat . | . . . . Combat . | . . . . Robot Hacks Applied . | . . . . Relay Couplers Released . | . . . . Fabnet Peak Effective % . | . . . . Robots Rewired . | . . . . Allies Hacked . | . . . . Hacks Repelled . | . . . . Allies | -11 -10 -9 -8 -------- Run | Jun Mat Mat Mat Total Allies . | . . . . Largest Group . | . . . . Highest-Rated Group . | . . . . Highest-Rated Ally . | . . . . Total Orders . | . . . . Ally Attacks . | . . . . Total Damage . | . . . . Kills . | . . . . Allies Corrupted . | . . . . Allies Melted . | . . . . Intel | -11 -10 -9 -8 ------- Run | Jun Mat Mat Mat Robot Analysis Total . | . . . . Derelict Logs Recovered . | . . . . Drone Launches . | . . . . Drone Recoveries . | . . . . Exploration | -11 -10 -9 -8 ------------- Run | Jun Mat Mat Mat Turns Passed 728 | 275 172 184 97 Spaces Moved 525 | 91 174 201 59 Core 42 | 15 . . 27 Treads 83 | 76 7 . . Legs . | . . . . Wheels . | . . . . Hover 68 | . . 36 32 Flight 332 | . 167 165 . Fastest Speed 37 | 50 37 37 48 Average Speed 68 | 141 45 58 54 Slowest Speed 180 | 160 160 180 150 Overloaded Moves . | . . . . Propulsion Burnouts . | . . . . Robots Hopped . | . . . . Cave-ins Triggered . | . . . . Exploration Rate (%) 16 | 4 39 20 3 Regions Visited 3 Branch Regions . Pre-discovered Areas . | . . . . Known Exits Taken . | . . . . Unknown Exits Taken 3 | 1 1 1 . Scrap Searched . | . . . . Spaces Dug . | . . . . Terrain Destroyed 1 | 1 . . . Melee . | . . . . Projectile 1 | 1 . . . AOE . | . . . . Terrain Rammed . | . . . . Walls Destroyed . | . . . . Machines Disabled . | . . . . Actions | -11 -10 -9 -8 --------- Run | Jun Mat Mat Mat Total 710 | 149 225 247 89 Wait 3 | 3 . . . Move 522 | 90 173 200 59 Hop . | . . . . Pick Up 34 | 8 10 14 2 Fast Attach . | . . . . Attach 19 | 7 2 6 4 Detach 3 | . 3 . . Swap 13 | 2 5 6 . Drop 17 | . 8 9 . Fire 99 | 39 24 12 24 Melee . | . . . . Ram . | . . . . Kick . | . . . . Crush . | . . . . Escape Stasis . | . . . . Rewire . | . . . . Trap . | . . . . Miscellaneous . | . . . . Route ------- -11/Junkyard -10/Materials (discovered 2 exits: *Mat / [*Min]) -9/Materials -8/Materials History --------- Turn | Location | Event 4 | -11/Junkyard | Discovered new exit (range 16) 276 | -11/Junkyard | Entered Materials 338 | -10/Materials | Build established: Mutant 370 | -10/Materials | Discovered new exit (range 13) 444 | -10/Materials | Discovered new exit (range 8) 448 | -10/Materials | Entered another Materials area 448 | -9/Materials | Evolved 2 slots: Propulsion x2 573 | -9/Materials | Discovered new exit (range 9) 632 | -9/Materials | Entered another Materials area 632 | -8/Materials | Evolved 2 slots: Power x1, Weapon x1 711 | -8/Materials | Core integrity fell below 50% 722 | -8/Materials | Core integrity fell below 20% 730 | -8/Materials | Core destroyed Last Messages --------------- Cryofiber Web temporarily disabled. Deuterium Engine destroyed. Power failure, Ion Engine shutdown. Overheating: System interference. Sensor Array temporarily disabled. Overheating: Ion Engine damaged (-13). Broken Imp. Hover Unit destroyed. Overheating: Beam Rifle damaged (-25). Overheating: Energy bleed (-45). Power failure, Ion Engine shutdown. Overheating: Matter decay (-24). Beam Rifle destroyed. Acquired 10 matter. Acquired Flight Unit. Ion Engine destroyed. Overheating: Core damaged (-110). Overheating: Energy bleed (-20). Sensor Array destroyed. Overheating: Energy bleed (-13). Overheating: Core damaged (-88). Map ----- +----------------------------------------------------+ | ?????????????????????????????????????????? | | ?????????????????????????????????????????? | | ?????????????????????????????????????????? | | ?????????????????????????????????????????? | | ?????????????????????????????????????????? | | ?????????????????????????????????????????? | | ?????????????????????????????????????????? | | ?????????????????????????????????????????? | | ?????????????????????????????????????????? | | ??????????? ???????????????????????????? | | ??????????# ???????????????????????????? | | ??????????+ +??????????????????????????? | | ??????????# #??????????????????????????? | | ??????????# #??????????????????????????? | | ??????????# #??????????????????????????? | | ??????????# #??????????????????????????? | | ??????????# #??????????????????????????? | | ??????????# #??????????????????????????? | | ??????????# +??????????????????????????? | | ??????????# #??????????????????????????? | | ??????????# #??????????????????????????? | | ??????????# #??????????????????????????? | | ???######## #######????????????????????? | | ???# # %# #????????????????????? | | ???# T # =%# #????????????????????? | | ???# + %!+ @ #????????????????????? | | ???# % # #sg #????????????????????? | | ???# !# # #????????????????????? | | ???# # # #????????????????????? | | ???############ #????????????????????? | | ??????????????#######????????????????????? | | ?????????????????????????????????????????? | | ?????????????????????????????????????????? | | ?????????????????????????????????????????? | | ?????????????????????????????????????????? | | ?????????????????????????????????????????? | | ?????????????????????????????????????????? | | ?????????????????????????????????????????? | | ?????????????????????????????????????????? | | ?????????????????????????????????????????? | | ?????????????????????????????????????????? | | ?????????????????????????????????????????? | | ?????????????????????????????????????????? | | ?????????????????????????????????????????? | | ?????????????????????????????????????????? | | ?????????????????????????????????????????? | | ?????????????????????????????????????????? | | ?????????????????????????????????????????? | | ?????????????????????????????????????????? | | | +----------------------------------------------------+ Best States ------------- Heat Dissipation 31 Energy Generation 23 Energy Capacity 450 Matter Stores 300 Matter Capacity 300 Sight Range 16 Robot Scan Range 14 Terrain Scan Range 16 Terrain Scan Density 10 Base Temperature (-) 100 Evasion (%) 62 Recoil Reduction 2 Item Schematics ----------------- None Robot Schematics ------------------ None Fabricated ------------ Nothing Alien Tech Used ----------------- None Achievements -------------- None Challenges ------------ None Game ------ Seed FieldSeismicRailgun Manual? 0 Play Time 00:21:49 Cumulative 4.4 hours Start 2023.06.27 @ 21:00:27 End 2023.06.27 @ 21:23:03 Sessions 1 Manual Loads 0 Difficulty Rogue Special Mode None Game No. 5 Rogue 5 Adventurer 0 Explorer 0 Win Type - Total 0 Types 0/0/0/0/0/0/0/0/0 Lore% 4 Gallery% 10 Achievement% 12 Wizard Run 0 Options --------- ASCII 0 Keyboard 0 Movement Mouse Keybinds 0 Fullscreen 1 Font 16/Cog Map View 112x50 Tactical HUD 0 Map Filters NONE Filters NONE Steam 1 RUN: ae6de4bd-7c5a-42c5-9752-9a879cea262e